{"text_format":"1","workbook":"xlsx","n_sheets":1,"sheets":["Feuil2"],"not_rendered":{"charts":0,"images":0,"macros":1,"external_links":0,"defined_names":1,"comments":0,"pivot_tables":0},"unopened":[],"bounds":{"document_bytes":16777216,"sheet_cells":100000,"rows_first":2000,"rows_last":500,"rows_between":2000,"halvings":0,"cell_chars":16384,"cell_head_chars":4096},"cells_cut":0,"cells_raw":0,"read":"whole","date_system":"1900"}

{"sheet":"Feuil2","index":0,"n_rows":40,"n_cols":5,"rows_kept":40,"cut":false,"hidden":false,"merged":[]}
["Ecris correctement ces nombres.",null,{"$f":"CONCATENATE(\"FICHE N°\",RANDBETWEEN(100,1000))","v":"FICHE N°704"},"min","max"]
["???","en chiffres :","en lettres :",100000000,100000000000]
[{"$f":"B3","v":59191779150},{"$f":"RANDBETWEEN($D$2,$E$2)","v":59191779150},{"$f":"NumText(B3)","v":"cinquante-neuf milliards cent quatre-vingt-onze millions sept cent soixante-dix-neuf mille cent cinquante  "}]
[{"$f":"B4","v":84260755568},84260755568,{"$f":"NumText(B4)","v":"quatre-vingt-quatre milliards deux cent soixante millions sept cent cinquante-cinq mille cinq cent soixante-huit  "}]
[76444905911,76444905911,"soixante-seize milliards quatre cent quarante-quatre millions neuf cent cinq mille neuf cent onze  "]
[50668856011,50668856011,"cinquante milliards six cent soixante-huit millions huit cent cinquante-six mille onze  "]
[81923385141,81923385141,"quatre-vingt-un milliards neuf cent vingt-trois millions trois cent quatre-vingt-cinq mille cent quarante-et-un  "]
[80062683665,80062683665,"quatre-vingts milliards soixante-deux millions six cent quatre-vingt-trois mille six cent soixante-cinq  "]
[43561467104,43561467104,"quarante-trois milliards cinq cent soixante-et-un millions quatre cent soixante-sept mille cent quatre  "]
[70885557889,70885557889,"soixante-dix milliards huit cent quatre-vingt-cinq millions cinq cent cinquante-sept mille huit cent quatre-vingt-neuf  "]
[66302314559,66302314559,"soixante-six milliards trois cent deux millions trois cent quatorze mille cinq cent cinquante-neuf  "]
[74456994972,74456994972,"soixante-quatorze milliards quatre cent cinquante-six millions neuf cent quatre-vingt-quatorze mille neuf cent soixante-douze  "]
[73275145051,73275145051,"soixante-treize milliards deux cent soixante-quinze millions cent quarante-cinq mille cinquante-et-un  "]
[85215822997,85215822997,"quatre-vingt-cinq milliards deux cent quinze millions huit cent vingt-deux mille neuf cent quatre-vingt-dix-sept  "]
[99034933742,99034933742,"quatre-vingt-dix-neuf milliards trente-quatre millions neuf cent trente-trois mille sept cent quarante-deux  "]
[11737640362,11737640362,"onze milliards sept cent trente-sept millions six cent quarante mille trois cent soixante-deux  "]
[52850053162,52850053162,"cinquante-deux milliards huit cent cinquante millions cinquante-trois mille cent soixante-deux  "]
[12490471388,12490471388,"douze milliards quatre cent quatre-vingt-dix millions quatre cent soixante-et-onze mille trois cent quatre-vingt-huit  "]
[88306605663,88306605663,"quatre-vingt-huit milliards trois cent six millions six cent cinq mille six cent soixante-trois  "]
[67720200717,67720200717,"soixante-sept milliards sept cent vingt millions deux cents mille sept cent dix-sept  "]
[{"$f":"A1","v":"Ecris correctement ces nombres."},null,{"$f":"CONCATENATE(\"CORRECTION DE LA \",C1)","v":"CORRECTION DE LA FICHE N°704"}]
["???","en chiffres :","en lettres :"]
[59191779150,59191779150,"cinquante-neuf milliards cent quatre-vingt-onze millions sept cent soixante-dix-neuf mille cent cinquante  "]
[84260755568,84260755568,"quatre-vingt-quatre milliards deux cent soixante millions sept cent cinquante-cinq mille cinq cent soixante-huit  "]
[76444905911,76444905911,"soixante-seize milliards quatre cent quarante-quatre millions neuf cent cinq mille neuf cent onze  "]
[50668856011,50668856011,"cinquante milliards six cent soixante-huit millions huit cent cinquante-six mille onze  "]
[81923385141,81923385141,"quatre-vingt-un milliards neuf cent vingt-trois millions trois cent quatre-vingt-cinq mille cent quarante-et-un  "]
[80062683665,80062683665,"quatre-vingts milliards soixante-deux millions six cent quatre-vingt-trois mille six cent soixante-cinq  "]
[43561467104,43561467104,"quarante-trois milliards cinq cent soixante-et-un millions quatre cent soixante-sept mille cent quatre  "]
[70885557889,70885557889,"soixante-dix milliards huit cent quatre-vingt-cinq millions cinq cent cinquante-sept mille huit cent quatre-vingt-neuf  "]
[66302314559,66302314559,"soixante-six milliards trois cent deux millions trois cent quatorze mille cinq cent cinquante-neuf  "]
[74456994972,74456994972,"soixante-quatorze milliards quatre cent cinquante-six millions neuf cent quatre-vingt-quatorze mille neuf cent soixante-douze  "]
[73275145051,73275145051,"soixante-treize milliards deux cent soixante-quinze millions cent quarante-cinq mille cinquante-et-un  "]
[85215822997,85215822997,"quatre-vingt-cinq milliards deux cent quinze millions huit cent vingt-deux mille neuf cent quatre-vingt-dix-sept  "]
[99034933742,99034933742,"quatre-vingt-dix-neuf milliards trente-quatre millions neuf cent trente-trois mille sept cent quarante-deux  "]
[11737640362,11737640362,"onze milliards sept cent trente-sept millions six cent quarante mille trois cent soixante-deux  "]
[52850053162,52850053162,"cinquante-deux milliards huit cent cinquante millions cinquante-trois mille cent soixante-deux  "]
[12490471388,12490471388,"douze milliards quatre cent quatre-vingt-dix millions quatre cent soixante-et-onze mille trois cent quatre-vingt-huit  "]
[88306605663,88306605663,"quatre-vingt-huit milliards trois cent six millions six cent cinq mille six cent soixante-trois  "]
[67720200717,67720200717,"soixante-sept milliards sept cent vingt millions deux cents mille sept cent dix-sept  "]